[Event "*** Titled Tuesday Blitz"]
[Site "Chess.com"]
[Date "2020.05.05"]
[Round "2"]
[White "BvsN"]
[Black "ZCorrales"]
[Result "1-0"]
[WhiteElo "2371"]
[BlackElo "2050"]
[TimeControl "180+1"]
[EndTime "10:18:18 PDT"]
[Termination "BvsN won by checkmate"]

1. d4 {[%clk 0:03:00.9]} 1... Nf6 {[%clk 0:02:57.7]} 2. c4 {[%clk 0:03:00.9]}
2... e6 {[%clk 0:02:57.4]} 3. Nc3 {[%clk 0:03:01.2]} 3... Bb4 {[%clk 0:02:57]}
4. f3 {[%clk 0:03:01.6]} 4... d5 {[%clk 0:02:56.1]} 5. a3 {[%clk 0:03:01.7]}
5... Bxc3+ {[%clk 0:02:55.7]} 6. bxc3 {[%clk 0:03:02.2]} 6... O-O {[%clk
0:02:55.9]} 7. cxd5 {[%clk 0:03:02.5]} 7... exd5 {[%clk 0:02:55.3]} 8. e3 {[%clk
0:03:02.9]} 8... Re8 {[%clk 0:02:53.4]} 9. Bd3 {[%clk 0:03:02.9]} 9... c5 {[%clk
0:02:51.6]} 10. Ne2 {[%clk 0:03:02.7]} 10... Nc6 {[%clk 0:02:40.2]} 11. O-O
{[%clk 0:03:02.3]} 11... b6 {[%clk 0:02:37.7]} 12. Ng3 {[%clk 0:03:01.9]} 12...
Na5 {[%clk 0:02:35.1]} 13. Ra2 {[%clk 0:03:01.2]} 13... Bd7 {[%clk 0:02:24.9]}
14. Kh1 {[%clk 0:02:55.6]} 14... Rc8 {[%clk 0:02:24.1]} 15. e4 {[%clk
0:02:52.9]} 15... cxd4 {[%clk 0:02:17.6]} 16. cxd4 {[%clk 0:02:52]} 16... dxe4
{[%clk 0:02:10.5]} 17. fxe4 {[%clk 0:02:45.7]} 17... Bg4 {[%clk 0:02:07.8]} 18.
Qa4 {[%clk 0:02:37.9]} 18... Rc3 {[%clk 0:01:53.3]} 19. Bb5 {[%clk 0:02:25.7]}
19... Rxe4 {[%clk 0:01:36.8]} 20. Nxe4 {[%clk 0:01:56.7]} 20... Nxe4 {[%clk
0:01:36.2]} 21. Bf4 {[%clk 0:01:31.1]} 21... Be6 {[%clk 0:01:24.3]} 22. Re2
{[%clk 0:01:13.7]} 22... f5 {[%clk 0:01:10.9]} 23. d5 {[%clk 0:00:56.1]} 23...
Qxd5 {[%clk 0:01:07.5]} 24. Rd1 {[%clk 0:00:48]} 24... Qc5 {[%clk 0:00:55.2]}
25. Bc4 {[%clk 0:00:32.7]} 25... Rxc4 {[%clk 0:00:49.4]} 26. Qe8+ {[%clk
0:00:30.9]} 26... Qf8 {[%clk 0:00:46.3]} 27. Qxe6+ {[%clk 0:00:30.9]} 27... Kh8
{[%clk 0:00:42.9]} 28. Bd6 {[%clk 0:00:15.9]} 28... Nxd6 {[%clk 0:00:35.5]} 29.
Qxd6 {[%clk 0:00:15.2]} 29... Qg8 {[%clk 0:00:33.2]} 30. Qd7 {[%clk 0:00:12.6]}
30... Rc8 {[%clk 0:00:32.1]} 31. Rde1 {[%clk 0:00:12.1]} 31... h6 {[%clk
0:00:31.4]} 32. Re8 {[%clk 0:00:08.9]} 32... Rxe8 {[%clk 0:00:27.4]} 33. Rxe8
{[%clk 0:00:09]} 33... Nb3 {[%clk 0:00:26.3]} 34. Rxg8+ {[%clk 0:00:08.8]} 34...
Kxg8 {[%clk 0:00:26.1]} 35. Qd5+ {[%clk 0:00:09.1]} 35... Kh7 {[%clk 0:00:26.1]}
36. Qxb3 {[%clk 0:00:10]} 36... Kg6 {[%clk 0:00:25.8]} 37. Qa4 {[%clk
0:00:10.4]} 37... Kg5 {[%clk 0:00:25.9]} 38. Qxa7 {[%clk 0:00:10.6]} 38... g6
{[%clk 0:00:25.9]} 39. Qxb6 {[%clk 0:00:11]} 39... f4 {[%clk 0:00:26.2]} 40. a4
{[%clk 0:00:11.6]} 40... Kh4 {[%clk 0:00:26.3]} 41. a5 {[%clk 0:00:11.7]} 41...
g5 {[%clk 0:00:26.3]} 42. a6 {[%clk 0:00:12.2]} 42... h5 {[%clk 0:00:26.5]} 43.
a7 {[%clk 0:00:12.4]} 43... g4 {[%clk 0:00:26.2]} 44. a8=Q {[%clk 0:00:12.4]}
44... g3 {[%clk 0:00:25.7]} 45. Qad8+ {[%clk 0:00:12.2]} 45... Kg4 {[%clk
0:00:24.9]} 46. Qe6# {[%clk 0:00:11.9]} 1-0

[Event "*** Titled Tuesday Blitz"]
[Site "Chess.com"]
[Date "2020.05.05"]
[Round "2"]
[White "annacramling"]
[Black "CroissantNeuf"]
[Result "0-1"]
[WhiteElo "1922"]
[BlackElo "2352"]
[TimeControl "180+1"]
[EndTime "10:18:18 PDT"]
[Termination "CroissantNeuf won on time"]

1. d4 {[%clk 0:03:00.9]} 1... Nf6 {[%clk 0:02:59.7]} 2. c4 {[%clk 0:03:00.6]}
2... e6 {[%clk 0:02:59.6]} 3. Nc3 {[%clk 0:02:55.6]} 3... Bb4 {[%clk 0:02:58.8]}
4. Qc2 {[%clk 0:02:55.8]} 4... O-O {[%clk 0:02:58.2]} 5. e4 {[%clk 0:02:47.2]}
5... d5 {[%clk 0:02:57.7]} 6. e5 {[%clk 0:02:44.2]} 6... Ne4 {[%clk 0:02:57.7]}
7. Bd3 {[%clk 0:02:43.5]} 7... c5 {[%clk 0:02:57.7]} 8. Nf3 {[%clk 0:02:43.3]}
8... cxd4 {[%clk 0:02:51.1]} 9. Nxd4 {[%clk 0:02:42.6]} 9... Nd7 {[%clk
0:02:43.1]} 10. Nf3 {[%clk 0:02:26.3]} 10... Ndc5 {[%clk 0:02:34.4]} 11. O-O
{[%clk 0:02:25.1]} 11... Bxc3 {[%clk 0:02:10]} 12. bxc3 {[%clk 0:02:21.5]} 12...
Nxd3 {[%clk 0:02:05.1]} 13. Qxd3 {[%clk 0:02:21.4]} 13... b6 {[%clk 0:02:01.4]}
14. Ba3 {[%clk 0:02:01.3]} 14... Re8 {[%clk 0:01:50]} 15. cxd5 {[%clk 0:01:45]}
15... Qxd5 {[%clk 0:01:47.2]} 16. Qc2 {[%clk 0:01:21.5]} 16... Bb7 {[%clk
0:01:35.4]} 17. Rfd1 {[%clk 0:01:17.7]} 17... Qc6 {[%clk 0:01:18.2]} 18. Bb2
{[%clk 0:01:02.7]} 18... Rac8 {[%clk 0:01:02.6]} 19. Rac1 {[%clk 0:01:02.3]}
19... b5 {[%clk 0:00:42.2]} 20. Nd4 {[%clk 0:00:36]} 20... Qc5 {[%clk
0:00:32.8]} 21. f3 {[%clk 0:00:26.5]} 21... f6 {[%clk 0:00:15.2]} 22. fxe4
{[%clk 0:00:08.8]} 22... fxe5 {[%clk 0:00:14.8]} 23. Qf2 {[%clk 0:00:08.7]}
23... exd4 {[%clk 0:00:14.1]} 24. Qxd4 {[%clk 0:00:08.4]} 24... e5 {[%clk
0:00:12.6]} 25. Qxc5 {[%clk 0:00:07.9]} 25... Rxc5 {[%clk 0:00:13.5]} 26. Ba3
{[%clk 0:00:05.7]} 26... Rc4 {[%clk 0:00:12.6]} 27. Bb4 {[%clk 0:00:03]} 27...
Rxe4 {[%clk 0:00:10.7]} 28. Re1 {[%clk 0:00:02.8]} 28... Rd8 {[%clk 0:00:09.8]}
29. Rxe4 {[%clk 0:00:02.4]} 29... Bxe4 {[%clk 0:00:10.3]} 30. Re1 {[%clk
0:00:03]} 30... Bc6 {[%clk 0:00:09.7]} 31. Ba3 {[%clk 0:00:01.9]} 31... Rd2
{[%clk 0:00:09.8]} 0-1

[Event "*** Titled Tuesday Blitz"]
[Site "Chess.com"]
[Date "2020.05.05"]
[Round "2"]
[White "HouseOfDurin"]
[Black "Xeslu"]
[Result "0-1"]
[WhiteElo "2002"]
[BlackElo "2361"]
[TimeControl "180+1"]
[EndTime "10:18:19 PDT"]
[Termination "Xeslu won on time"]

1. d4 {[%clk 0:03:00.9]} 1... Nf6 {[%clk 0:02:57.6]} 2. Bg5 {[%clk 0:03:01.4]}
2... Ne4 {[%clk 0:02:56.6]} 3. h4 {[%clk 0:03:01.2]} 3... c5 {[%clk 0:02:56.7]}
4. dxc5 {[%clk 0:03:00.9]} 4... Qa5+ {[%clk 0:02:54.9]} 5. Nd2 {[%clk
0:03:01.1]} 5... Nxd2 {[%clk 0:02:40.6]} 6. Qxd2 {[%clk 0:03:02]} 6... Qxc5
{[%clk 0:02:40.7]} 7. c3 {[%clk 0:03:01.4]} 7... d5 {[%clk 0:02:27.7]} 8. e4
{[%clk 0:02:35.1]} 8... dxe4 {[%clk 0:02:04]} 9. O-O-O {[%clk 0:02:31]} 9... Nc6
{[%clk 0:02:03]} 10. b4 {[%clk 0:01:19.8]} 10... Qb6 {[%clk 0:01:54.1]} 11. Bc4
{[%clk 0:00:45.8]} 11... Ne5 {[%clk 0:01:33.3]} 12. Bb5+ {[%clk 0:00:32.7]}
12... Nc6 {[%clk 0:01:26.8]} 13. Qd5 {[%clk 0:00:16.9]} 13... Be6 {[%clk
0:01:05.9]} 14. Bxc6+ {[%clk 0:00:16.4]} 14... Qxc6 {[%clk 0:01:02.7]} 15. Qxc6+
{[%clk 0:00:15]} 15... bxc6 {[%clk 0:01:02.6]} 16. Ne2 {[%clk 0:00:14.6]} 16...
Bxa2 {[%clk 0:01:00.1]} 17. Ng3 {[%clk 0:00:13.8]} 17... Bd5 {[%clk 0:00:47]}
18. Be3 {[%clk 0:00:08.3]} 18... e6 {[%clk 0:00:43.1]} 19. c4 {[%clk 0:00:05.6]}
19... Bxc4 {[%clk 0:00:42.6]} 20. Nxe4 {[%clk 0:00:06.5]} 20... Bxb4 {[%clk
0:00:38.3]} 21. Rd4 {[%clk 0:00:05.8]} 21... Ba3+ {[%clk 0:00:34.8]} 22. Kc2
{[%clk 0:00:05.5]} 22... Bd5 {[%clk 0:00:34.8]} 23. Nc3 {[%clk 0:00:03.6]} 23...
O-O {[%clk 0:00:27.3]} 24. Ra4 {[%clk 0:00:03.2]} 24... Be7 {[%clk 0:00:24.3]}
25. Rxa7 {[%clk 0:00:02.9]} 25... Rxa7 {[%clk 0:00:24.2]} 26. Bxa7 {[%clk
0:00:03.8]} 26... Ra8 {[%clk 0:00:24.4]} 27. Be3 {[%clk 0:00:03.5]} 27... Bf6
{[%clk 0:00:24.3]} 28. Rc1 {[%clk 0:00:02.2]} 28... Bxc3 {[%clk 0:00:23.2]} 29.
Kxc3 {[%clk 0:00:03.1]} 29... Bxg2 {[%clk 0:00:22.5]} 30. Kd4 {[%clk 0:00:02.2]}
30... Bd5 {[%clk 0:00:22.2]} 31. Ke5 {[%clk 0:00:02.2]} 31... h6 {[%clk
0:00:22]} 32. Kd6 {[%clk 0:00:01.1]} 32... Kh7 {[%clk 0:00:21.4]} 33. Ke7 {[%clk
0:00:01.4]} 33... f5 {[%clk 0:00:20.5]} 34. Kf7 {[%clk 0:00:01.1]} 34... Rb8
{[%clk 0:00:19.3]} 35. Ke7 {[%clk 0:00:01]} 35... Rb7+ {[%clk 0:00:19.3]} 0-1

[Event "*** Titled Tuesday Blitz"]
[Site "Chess.com"]
[Date "2020.05.05"]
[Round "2"]
[White "czasnaszachy"]
[Black "CyberneticLion"]
[Result "0-1"]
[WhiteElo "2308"]
[BlackElo "2606"]
[TimeControl "180+1"]
[EndTime "10:18:20 PDT"]
[Termination "CyberneticLion won by checkmate"]

1. d4 {[%clk 0:03:00.9]} 1... d5 {[%clk 0:02:56.7]} 2. c4 {[%clk 0:02:59.1]}
2... e6 {[%clk 0:02:56.4]} 3. Nc3 {[%clk 0:02:58.6]} 3... Nf6 {[%clk 0:02:56.1]}
4. Nf3 {[%clk 0:02:56.5]} 4... c6 {[%clk 0:02:55.9]} 5. e3 {[%clk 0:02:55.1]}
5... Nbd7 {[%clk 0:02:56.3]} 6. Bd2 {[%clk 0:02:53.5]} 6... Bd6 {[%clk
0:02:55.3]} 7. Rc1 {[%clk 0:02:53.5]} 7... O-O {[%clk 0:02:54.8]} 8. Bd3 {[%clk
0:02:51.5]} 8... dxc4 {[%clk 0:02:54.2]} 9. Bxc4 {[%clk 0:02:51.8]} 9... b5
{[%clk 0:02:54.7]} 10. Bd3 {[%clk 0:02:52.5]} 10... Bb7 {[%clk 0:02:54.9]} 11.
O-O {[%clk 0:02:52.6]} 11... a6 {[%clk 0:02:55.1]} 12. e4 {[%clk 0:02:52.6]}
12... e5 {[%clk 0:02:54.9]} 13. d5 {[%clk 0:02:51.6]} 13... cxd5 {[%clk
0:02:54.3]} 14. Nxd5 {[%clk 0:02:49.6]} 14... Nxd5 {[%clk 0:02:52.8]} 15. exd5
{[%clk 0:02:49.4]} 15... Bxd5 {[%clk 0:02:53.7]} 16. Bg5 {[%clk 0:02:43.2]}
16... Nf6 {[%clk 0:02:50.7]} 17. Bxf6 {[%clk 0:02:41.1]} 17... Bxf3 {[%clk
0:02:38]} 18. Bxh7+ {[%clk 0:01:31.5]} 18... Kh8 {[%clk 0:02:30.8]} 19. Qxf3
{[%clk 0:00:53.1]} 19... Qxf6 {[%clk 0:02:28.3]} 20. Qxf6 {[%clk 0:00:39.2]}
20... gxf6 {[%clk 0:02:29.2]} 21. Bf5 {[%clk 0:00:39.6]} 21... Rfd8 {[%clk
0:02:25.4]} 22. Rc6 {[%clk 0:00:39]} 22... Kg7 {[%clk 0:02:21.2]} 23. Rfc1
{[%clk 0:00:38.6]} 23... Bb4 {[%clk 0:02:09.8]} 24. a3 {[%clk 0:00:34.8]} 24...
Bd2 {[%clk 0:02:08.8]} 25. R1c2 {[%clk 0:00:31.8]} 25... a5 {[%clk 0:02:04.9]}
26. g3 {[%clk 0:00:28.3]} 26... b4 {[%clk 0:02:04.9]} 27. axb4 {[%clk
0:00:27.6]} 27... Bxb4 {[%clk 0:02:04.5]} 28. Rc7 {[%clk 0:00:25.9]} 28... Rd1+
{[%clk 0:02:02.7]} 29. Kg2 {[%clk 0:00:25.6]} 29... Re8 {[%clk 0:01:53.4]} 30.
Rb7 {[%clk 0:00:23.3]} 30... Kf8 {[%clk 0:01:45]} 31. Rcc7 {[%clk 0:00:22.4]}
31... Re7 {[%clk 0:01:45.2]} 32. Rxe7 {[%clk 0:00:17.2]} 32... Bxe7 {[%clk
0:01:46.1]} 33. Rb8+ {[%clk 0:00:13.4]} 33... Kg7 {[%clk 0:01:44.5]} 34. Ra8
{[%clk 0:00:13.4]} 34... Bb4 {[%clk 0:01:43.8]} 35. Ra7 {[%clk 0:00:12.3]} 35...
Rd2 {[%clk 0:01:43.9]} 36. b3 {[%clk 0:00:09.8]} 36... Rb2 {[%clk 0:01:44.1]}
37. Be6 {[%clk 0:00:09.7]} 37... Be1 {[%clk 0:01:44.5]} 38. Rxf7+ {[%clk
0:00:09]} 38... Kg6 {[%clk 0:01:44.9]} 39. Kh3 {[%clk 0:00:06.2]} 39... Bxf2
{[%clk 0:01:42.2]} 40. Kg4 {[%clk 0:00:03.1]} 40... Rd2 {[%clk 0:01:32.1]} 41.
Ra7 {[%clk 0:00:02.7]} 41... Rd4+ {[%clk 0:01:31.9]} 42. Kf3 {[%clk 0:00:02.4]}
42... Be1 {[%clk 0:01:32.7]} 43. Bc4 {[%clk 0:00:01.8]} 43... Bd2 {[%clk
0:01:24]} 44. Ke2 {[%clk 0:00:02.1]} 44... f5 {[%clk 0:01:21.9]} 45. Ra6+ {[%clk
0:00:02.1]} 45... Kg5 {[%clk 0:01:18.5]} 46. Re6 {[%clk 0:00:02.8]} 46... Bc3
{[%clk 0:01:12]} 47. Re8 {[%clk 0:00:03]} 47... Rd2+ {[%clk 0:01:11.4]} 48. Ke3
{[%clk 0:00:02.9]} 48... Rxh2 {[%clk 0:01:11.9]} 49. Rg8+ {[%clk 0:00:02.6]}
49... Kf6 {[%clk 0:01:10.6]} 50. Rf8+ {[%clk 0:00:03]} 50... Kg6 {[%clk
0:01:08.1]} 51. Rg8+ {[%clk 0:00:03.2]} 51... Kh7 {[%clk 0:01:08.6]} 52. Ra8
{[%clk 0:00:02.6]} 52... Bd4+ {[%clk 0:01:00.6]} 53. Kf3 {[%clk 0:00:02.4]}
53... Rf2# {[%clk 0:01:00.2]} 0-1

[Event "*** Titled Tuesday Blitz"]
[Site "Chess.com"]
[Date "2020.05.05"]
[Round "2"]
[White "asms9699"]
[Black "SHIVACalypso"]
[Result "1-0"]
[WhiteElo "2623"]
[BlackElo "2283"]
[TimeControl "180+1"]
[EndTime "10:18:22 PDT"]
[Termination "asms9699 won by resignation"]

1. c4 {[%clk 0:03:00.9]} 1... Nf6 {[%clk 0:02:54.1]} 2. g3 {[%clk 0:03:01.4]}
2... e5 {[%clk 0:02:53.2]} 3. Bg2 {[%clk 0:03:01.9]} 3... Nc6 {[%clk 0:02:53.7]}
4. Nc3 {[%clk 0:03:01.6]} 4... g6 {[%clk 0:02:53.9]} 5. Nf3 {[%clk 0:03:01.8]}
5... Bg7 {[%clk 0:02:53.8]} 6. O-O {[%clk 0:03:02.2]} 6... O-O {[%clk
0:02:53.5]} 7. d3 {[%clk 0:03:02.7]} 7... d6 {[%clk 0:02:51.4]} 8. b3 {[%clk
0:03:00.8]} 8... h6 {[%clk 0:02:44.4]} 9. Bb2 {[%clk 0:03:00.7]} 9... Be6 {[%clk
0:02:36.1]} 10. d4 {[%clk 0:02:57.9]} 10... exd4 {[%clk 0:02:26.4]} 11. Nxd4
{[%clk 0:02:58.8]} 11... Nxd4 {[%clk 0:02:25.7]} 12. Qxd4 {[%clk 0:02:59.7]}
12... Nd5 {[%clk 0:02:17.1]} 13. Qd2 {[%clk 0:02:54.9]} 13... Nxc3 {[%clk
0:02:16.5]} 14. Bxc3 {[%clk 0:02:55.8]} 14... Bxc3 {[%clk 0:02:14.1]} 15. Qxc3
{[%clk 0:02:56.7]} 15... c6 {[%clk 0:02:09.6]} 16. Rad1 {[%clk 0:02:56.3]} 16...
Qe7 {[%clk 0:02:09]} 17. Qd2 {[%clk 0:02:53.1]} 17... Rad8 {[%clk 0:02:02.9]}
18. Qxh6 {[%clk 0:02:51.7]} 18... Bg4 {[%clk 0:01:49.6]} 19. Rfe1 {[%clk
0:02:44.7]} 19... Qe5 {[%clk 0:01:40.4]} 20. h3 {[%clk 0:02:34]} 20... Be6
{[%clk 0:01:36.1]} 21. Qd2 {[%clk 0:02:29.2]} 21... d5 {[%clk 0:01:32]} 22. cxd5
{[%clk 0:02:27.5]} 22... Bxd5 {[%clk 0:01:31.1]} 23. Qc2 {[%clk 0:01:53.6]}
23... Rfe8 {[%clk 0:01:23.3]} 24. e3 {[%clk 0:01:48.5]} 24... Bxg2 {[%clk
0:00:55.3]} 25. Kxg2 {[%clk 0:01:49.4]} 25... Rd5 {[%clk 0:00:55.5]} 26. Rxd5
{[%clk 0:01:11]} 26... Qxd5+ {[%clk 0:00:56.4]} 27. e4 {[%clk 0:01:10.3]} 27...
Qd4 {[%clk 0:00:54]} 28. Qc4 {[%clk 0:01:05.3]} 28... Qd2 {[%clk 0:00:44.2]} 29.
Re2 {[%clk 0:00:46.5]} 29... Qd1 {[%clk 0:00:43.7]} 30. Re3 {[%clk 0:00:41.9]}
30... Re6 {[%clk 0:00:33.7]} 31. Qc3 {[%clk 0:00:28.5]} 31... Qd7 {[%clk
0:00:16.7]} 32. h4 {[%clk 0:00:25.9]} 32... Qe7 {[%clk 0:00:15.3]} 33. e5 {[%clk
0:00:23.2]} 33... f6 {[%clk 0:00:14]} 34. exf6 {[%clk 0:00:19.8]} 34... Qxf6
{[%clk 0:00:13.1]} 35. Qc4 {[%clk 0:00:18.7]} 35... Kf7 {[%clk 0:00:10.2]} 36.
g4 {[%clk 0:00:15.3]} 1-0

[Event "*** Titled Tuesday Blitz"]
[Site "Chess.com"]
[Date "2020.05.05"]
[Round "2"]
[White "Benjoneliere44"]
[Black "Ave_Mariia"]
[Result "1-0"]
[WhiteElo "2574"]
[BlackElo "2297"]
[TimeControl "180+1"]
[EndTime "10:18:22 PDT"]
[Termination "Benjoneliere44 won by resignation"]

1. e4 {[%clk 0:03:00.9]} 1... c5 {[%clk 0:02:59.6]} 2. Nc3 {[%clk 0:03:01.1]}
2... d6 {[%clk 0:02:57.1]} 3. g3 {[%clk 0:03:01.4]} 3... Nc6 {[%clk 0:02:55.6]}
4. Bg2 {[%clk 0:03:01.5]} 4... g6 {[%clk 0:02:55.4]} 5. d3 {[%clk 0:03:01.8]}
5... Bg7 {[%clk 0:02:55.8]} 6. Be3 {[%clk 0:03:02.4]} 6... e6 {[%clk 0:02:51.2]}
7. Qd2 {[%clk 0:03:02.4]} 7... h5 {[%clk 0:02:44.7]} 8. h3 {[%clk 0:03:02]} 8...
Nge7 {[%clk 0:02:43.2]} 9. Nge2 {[%clk 0:03:01.1]} 9... Nd4 {[%clk 0:02:41.8]}
10. O-O {[%clk 0:03:00.7]} 10... Nec6 {[%clk 0:02:39.6]} 11. Nc1 {[%clk
0:02:59.9]} 11... Rb8 {[%clk 0:02:34.6]} 12. Nd1 {[%clk 0:03:00.1]} 12... e5
{[%clk 0:02:13.8]} 13. c3 {[%clk 0:03:00.1]} 13... Ne6 {[%clk 0:02:14]} 14. Ne2
{[%clk 0:03:00.1]} 14... O-O {[%clk 0:02:10.9]} 15. Bh6 {[%clk 0:03:00]} 15...
h4 {[%clk 0:02:01.5]} 16. g4 {[%clk 0:02:57.6]} 16... g5 {[%clk 0:01:50.1]} 17.
Bxg7 {[%clk 0:02:55.1]} 17... Kxg7 {[%clk 0:01:50.6]} 18. Ne3 {[%clk 0:02:55.2]}
18... Nf4 {[%clk 0:01:48]} 19. Rad1 {[%clk 0:02:51]} 19... Ne7 {[%clk
0:01:44.9]} 20. d4 {[%clk 0:02:48.5]} 20... Be6 {[%clk 0:01:33]} 21. Nxf4 {[%clk
0:02:42.1]} 21... exf4 {[%clk 0:01:25.1]} 22. Nf5+ {[%clk 0:02:43]} 22... Bxf5
{[%clk 0:01:11.9]} 23. exf5 {[%clk 0:02:43.9]} 23... c4 {[%clk 0:01:03.6]} 24.
Qe2 {[%clk 0:02:34.4]} 24... Re8 {[%clk 0:00:59.9]} 25. Qxc4 {[%clk 0:02:32.1]}
25... d5 {[%clk 0:00:57.9]} 26. Qb3 {[%clk 0:02:20.9]} 26... Qd6 {[%clk
0:00:54.2]} 27. Rfe1 {[%clk 0:02:19.5]} 27... Rbd8 {[%clk 0:00:53.7]} 28. Re5
{[%clk 0:02:16.6]} 28... f6 {[%clk 0:00:36.2]} 29. Re6 {[%clk 0:01:59.3]} 29...
Qd7 {[%clk 0:00:36.3]} 30. Rde1 {[%clk 0:01:56.9]} 30... b6 {[%clk 0:00:36.5]}
31. a4 {[%clk 0:01:49.5]} 31... Qc7 {[%clk 0:00:12.2]} 32. Qb5 {[%clk
0:01:44.2]} 32... Rd7 {[%clk 0:00:10.4]} 33. Bxd5 {[%clk 0:01:16.4]} 33... Nxd5
{[%clk 0:00:10.6]} 34. Rxe8 {[%clk 0:01:15.2]} 34... f3 {[%clk 0:00:09.3]} 35.
c4 {[%clk 0:01:06.4]} 35... Nf4 {[%clk 0:00:06.5]} 36. Qxd7+ {[%clk 0:01:06.2]}
36... Qxd7 {[%clk 0:00:07]} 37. R8e7+ {[%clk 0:01:06.6]} 37... Qxe7 {[%clk
0:00:07.3]} 38. Rxe7+ {[%clk 0:01:06.5]} 38... Kf8 {[%clk 0:00:07.3]} 39. Rxa7
{[%clk 0:01:05.5]} 39... Nxh3+ {[%clk 0:00:07.7]} 40. Kf1 {[%clk 0:01:05.3]}
40... Nf4 {[%clk 0:00:08]} 41. c5 {[%clk 0:01:00.7]} 41... h3 {[%clk 0:00:08.3]}
42. Rh7 {[%clk 0:00:48.1]} 42... bxc5 {[%clk 0:00:07.5]} 43. dxc5 {[%clk
0:00:47]} 43... Kg8 {[%clk 0:00:07.9]} 44. Rxh3 {[%clk 0:00:37.4]} 44... Nxh3
{[%clk 0:00:07.3]} 45. c6 {[%clk 0:00:37.8]} 1-0

[Event "*** Titled Tuesday Blitz"]
[Site "Chess.com"]
[Date "2020.05.05"]
[Round "2"]
[White "UCantHandleDenker"]
[Black "Grischuk"]
[Result "0-1"]
[WhiteElo "2595"]
[BlackElo "3116"]
[TimeControl "180+1"]
[EndTime "10:18:24 PDT"]
[Termination "Grischuk won by resignation"]

1. Nf3 {[%clk 0:02:59.6]} 1... Nf6 {[%clk 0:02:59.2]} 2. c4 {[%clk 0:02:59.2]}
2... g6 {[%clk 0:02:59.2]} 3. g3 {[%clk 0:02:59.5]} 3... Bg7 {[%clk 0:02:58.9]}
4. Bg2 {[%clk 0:03:00.2]} 4... O-O {[%clk 0:02:58.6]} 5. O-O {[%clk 0:03:00.9]}
5... d6 {[%clk 0:02:59.3]} 6. Nc3 {[%clk 0:03:01]} 6... e5 {[%clk 0:02:58.8]} 7.
d3 {[%clk 0:03:00.9]} 7... Nh5 {[%clk 0:02:55.6]} 8. Rb1 {[%clk 0:03:00.3]} 8...
f5 {[%clk 0:02:55.5]} 9. Bd2 {[%clk 0:03:00.1]} 9... h6 {[%clk 0:02:48.3]} 10.
b4 {[%clk 0:02:59]} 10... g5 {[%clk 0:02:48.2]} 11. b5 {[%clk 0:02:55.1]} 11...
f4 {[%clk 0:02:45.7]} 12. Ne4 {[%clk 0:02:52.5]} 12... Nd7 {[%clk 0:02:43.2]}
13. a4 {[%clk 0:02:49.3]} 13... Ndf6 {[%clk 0:02:42.3]} 14. a5 {[%clk
0:02:32.6]} 14... Bf5 {[%clk 0:02:26.4]} 15. Nxf6+ {[%clk 0:02:25.4]} 15... Nxf6
{[%clk 0:02:23.1]} 16. Bc3 {[%clk 0:02:16]} 16... b6 {[%clk 0:02:15.8]} 17. Ra1
{[%clk 0:02:11.4]} 17... Rc8 {[%clk 0:02:12.1]} 18. axb6 {[%clk 0:02:09.2]}
18... axb6 {[%clk 0:02:13]} 19. Ra7 {[%clk 0:02:08.5]} 19... Qe8 {[%clk
0:02:08.2]} 20. Qb3 {[%clk 0:01:31.7]} 20... Kh8 {[%clk 0:01:58.6]} 21. Rfa1
{[%clk 0:01:21.4]} 21... Qh5 {[%clk 0:01:56.6]} 22. c5 {[%clk 0:01:09.5]} 22...
bxc5 {[%clk 0:01:44.2]} 23. b6 {[%clk 0:01:09.8]} 23... cxb6 {[%clk 0:01:36.1]}
24. Qxb6 {[%clk 0:01:09.7]} 24... Rcd8 {[%clk 0:01:15.6]} 25. Rb7 {[%clk
0:00:45.4]} 25... Nd5 {[%clk 0:00:56.5]} 26. Qa7 {[%clk 0:00:38.5]} 26... Nxc3
{[%clk 0:00:25]} 27. Rxg7 {[%clk 0:00:37.5]} 27... Nxe2+ {[%clk 0:00:25.4]} 28.
Kf1 {[%clk 0:00:32.9]} 28... Ra8 {[%clk 0:00:17.7]} 29. Kxe2 {[%clk 0:00:16]}
29... Rxa7 {[%clk 0:00:16.7]} 30. Raxa7 {[%clk 0:00:16.9]} 30... g4 {[%clk
0:00:10.8]} 31. Nh4 {[%clk 0:00:09.9]} 31... f3+ {[%clk 0:00:11.3]} 32. Nxf3
{[%clk 0:00:10]} 32... gxf3+ {[%clk 0:00:12.2]} 33. Bxf3 {[%clk 0:00:10.5]}
33... Bxd3+ {[%clk 0:00:10.4]} 34. Kxd3 {[%clk 0:00:10.9]} 34... Qxf3+ {[%clk
0:00:10.5]} 35. Kc4 {[%clk 0:00:11.4]} 35... Qe4+ {[%clk 0:00:09.5]} 0-1

[Event "*** Titled Tuesday Blitz"]
[Site "Chess.com"]
[Date "2020.05.05"]
[Round "2"]
[White "The_Machine04"]
[Black "ftorodent"]
[Result "0-1"]
[WhiteElo "2323"]
[BlackElo "2666"]
[TimeControl "180+1"]
[EndTime "10:18:24 PDT"]
[Termination "ftorodent won by resignation"]

1. d4 {[%clk 0:03:00.9]} 1... f5 {[%clk 0:02:59.2]} 2. Bg5 {[%clk 0:03:00.6]}
2... g6 {[%clk 0:02:58.6]} 3. e3 {[%clk 0:03:00]} 3... Bg7 {[%clk 0:02:57.8]} 4.
Nc3 {[%clk 0:02:57.7]} 4... d5 {[%clk 0:02:57]} 5. h4 {[%clk 0:02:57.6]} 5... h6
{[%clk 0:02:49.6]} 6. Bf4 {[%clk 0:02:57]} 6... Nf6 {[%clk 0:02:49.7]} 7. Nf3
{[%clk 0:02:52.1]} 7... Be6 {[%clk 0:02:42.4]} 8. Ne5 {[%clk 0:02:51.4]} 8...
Bf7 {[%clk 0:02:42.4]} 9. Bd3 {[%clk 0:02:47.4]} 9... Nbd7 {[%clk 0:02:39.5]}
10. Qe2 {[%clk 0:02:42.8]} 10... c6 {[%clk 0:02:30.6]} 11. f3 {[%clk 0:02:38.8]}
11... Nh5 {[%clk 0:02:23.4]} 12. Bh2 {[%clk 0:02:19.6]} 12... Nxe5 {[%clk
0:02:13.9]} 13. dxe5 {[%clk 0:02:18.6]} 13... d4 {[%clk 0:02:10.7]} 14. exd4
{[%clk 0:02:14.6]} 14... Qxd4 {[%clk 0:02:05.1]} 15. e6 {[%clk 0:02:02.8]} 15...
Bg8 {[%clk 0:02:04.7]} 16. O-O-O {[%clk 0:01:57.7]} 16... Nf4 {[%clk 0:01:56.4]}
17. Qf1 {[%clk 0:01:37.5]} 17... Bxe6 {[%clk 0:01:49.1]} 18. Kb1 {[%clk
0:01:20.2]} 18... Qb4 {[%clk 0:01:27.3]} 19. Bxf4 {[%clk 0:01:11.6]} 19... Qxf4
{[%clk 0:01:19.9]} 20. Re1 {[%clk 0:00:59.9]} 20... Bf7 {[%clk 0:01:05.9]} 21.
Qe2 {[%clk 0:00:48.5]} 21... Bf6 {[%clk 0:00:58.8]} 22. g4 {[%clk 0:00:27]}
22... O-O-O {[%clk 0:00:53.2]} 23. gxf5 {[%clk 0:00:19.8]} 23... gxf5 {[%clk
0:00:53.2]} 24. Qe3 {[%clk 0:00:11.9]} 24... Qxe3 {[%clk 0:00:52.6]} 25. Rxe3
{[%clk 0:00:12.8]} 25... f4 {[%clk 0:00:44.2]} 26. Re2 {[%clk 0:00:11.8]} 26...
Rhg8 {[%clk 0:00:37.6]} 27. Ne4 {[%clk 0:00:11.7]} 27... Bd4 {[%clk 0:00:37.5]}
28. c3 {[%clk 0:00:09.8]} 28... Be3 {[%clk 0:00:36.9]} 29. Bc2 {[%clk
0:00:09.2]} 29... Bc4 {[%clk 0:00:35.9]} 30. Reh2 {[%clk 0:00:08]} 30... Bg1
{[%clk 0:00:34.7]} 31. Rd2 {[%clk 0:00:04.7]} 31... Be3 {[%clk 0:00:33.3]} 32.
Rxd8+ {[%clk 0:00:04.5]} 32... Kxd8 {[%clk 0:00:33.1]} 33. b3 {[%clk 0:00:05.4]}
33... Be2 {[%clk 0:00:32.5]} 34. Re1 {[%clk 0:00:04.6]} 34... Bxf3 {[%clk
0:00:31.8]} 35. Bd1 {[%clk 0:00:02]} 35... Bxe4+ {[%clk 0:00:30.7]} 36. Bc2
{[%clk 0:00:02.4]} 36... Bxc2+ {[%clk 0:00:30.1]} 37. Kxc2 {[%clk 0:00:03.3]}
37... Rg2+ {[%clk 0:00:30.1]} 38. Kd3 {[%clk 0:00:02.3]} 38... Rxa2 {[%clk
0:00:30.1]} 39. Ke4 {[%clk 0:00:02.4]} 39... Rb2 {[%clk 0:00:29.5]} 0-1